{"text_format":"1","workbook":"xlsx","n_sheets":2,"sheets":["Смета по разделам","СМЕТА"],"not_rendered":{"charts":0,"images":0,"macros":1,"external_links":0,"defined_names":19,"comments":0,"pivot_tables":0},"unopened":[],"bounds":{"document_bytes":16777216,"sheet_cells":100000,"rows_first":2000,"rows_last":500,"rows_between":2000,"halvings":0,"cell_chars":16384,"cell_head_chars":4096},"cells_cut":0,"cells_raw":0,"read":"whole","date_system":"1900"}

{"sheet":"Смета по разделам","index":0,"n_rows":143,"n_cols":13,"rows_kept":143,"cut":false,"hidden":false,"merged":[]}
[null,"СМЕТНЫЙ РАСЧЕТ"]
[null,"на проведение ремонтно-отделочных работ"]
[null,"Наименование работ","Помещения","Кол-во","Ед.изм.","Цена за ед работы","Цена за ед мат-ла","Работа","Материал","Всего, руб.",null,"подЭтап","Вид"]
[{"$f":"IF(K4=\"\",\"#ЗНАЧ!\",LEFT(K4,1))","v":"#ЗНАЧ!"},null,null,null,null,null,null,null,null,null,null,{"$f":"MID(K4,SEARCH(\",\",K4,1)+1,2)","v":{"$error":"#VALUE!"}}]
[{"$f":"IF(K5=\"\",\"#ЗНАЧ!\",LEFT(K5,1))","v":"#ЗНАЧ!"},"Пол",null,null,null,null,null,null,null,null,null,{"$error":"#VALUE!"},"Пол"]
["2","Гидроизоляция пола в 2 слоя\n(Гидpoизoляциoнная смесь \"Глимс Водостоп\")","с/у",0,"кв.м.",0,0,{"$f":"ROUND(PRODUCT(D6:F6),0)","v":0},{"$f":"ROUND(PRODUCT(D6,G6),0)","v":0},{"$f":"SUM(H6:I6)","v":0},2.06,"06","Пол"]
["2","Гидроизоляция пола в 1 слой\n(Гидpoизoляциoнная смесь \"Глимс Водостоп\")",null,0,"кв.м.",0,0,0,0,0,2.0699999999999998,"07","Пол"]
["2","Укладка шумоизоляции на пол\n(Шуманет Супер 100)",null,0,"кв.м.",0,0,0,0,0,2.08,"08","Пол"]
["2","Утепление пола пенополистиролом (ЭППС)","балкон",0,"кв.м.",0,0,0,0,0,2.09,"09","Пол"]
["2","Засыпка пола керамзитом + поливка цемент. молочком\n(керамзит, Евроцемент М500)",null,0,"кв.м.",0,0,0,0,0,2.1,"1","Пол"]
["2","Армирование стяжки\n(метал.сетка 100х100мм, вязальная проволока)","балкон",0,"кв.м.",0,0,0,0,0,2.11,"11","Пол"]
["2","Устройство мокрой стяжки с креплением демпферной ленты и установкой маяков\n(Пескобетон М300 \"Русеан\" + пластификатор + демпферная лента + оцинкованный маяк 10мм)","везде",0,"кв.м.",0,0,0,0,0,2.12,"12","Пол"]
["4","Укладка электрического теплого пола (рабочие зоны)",null,0,"кв.м.",0,0,0,0,0,4.03,"03","Пол"]
["4","Укладка плитки на пол по прямой (с затиркой швов) \n(Плиточный клей \"Knauf Fliesen\")",null,0,"кв.м.",0,0,0,0,0,4.04,"04","Пол"]
["4","Укладка плитки на пол по диагонали (с затиркой швов) \n(Плиточный клей \"Knauf Fliesen\")",null,0,"кв.м.",0,0,0,0,0,4.05,"05","Пол"]
["4","Укладка плитки на порог\n(Плиточный клей \"Knauf Fliesen\")","выход на балкон",0,"компл.",0,0,0,0,0,4.0599999999999996,"06","Пол"]
["4","Устройство подиума под душевой уголок с установкой трапа + укладка плитки на нее",null,0,"компл.",0,0,0,0,0,4.07,"07","Пол"]
["4","Устройство наливного пола (чистовое выравнивание)\n(Наливной пол \"Glims-S-Level\")","везде, кроме плитки",0,"кв.м.",0,0,0,0,0,4.17,"17","Пол"]
["5","Грунтование грунтовкой глубокого проникновения-\n - все циклы между слоями\n(Грунтовка глубокого проникновения \"Cerezit\")","пол",0,"кв.м.",0,0,0,0,0,5.22,"22","Пол"]
["6","Укладка ламината (с подложкой)","см.наливной пол",0,"кв.м.",0,0,0,0,0,6.11,"11","Пол"]
["6","Монтаж напольного плинтуса из ПВХ","везде, кроме с/у",0,"п.м.",0,0,0,0,0,6.12,"12","Пол"]
["6","Укладка паркетной доски (с подложкой), либо виниловой планки",null,0,"кв.м.",0,0,0,0,0,6.13,"13","Пол"]
["6","Монтаж напольного плинтуса (МДФ)","везде, кроме с/у",0,"п.м.",0,0,0,0,0,6.14,"14","Пол"]
["6","Укладка фанеры + шлифовка стыков",null,0,"кв.м.",0,0,0,0,0,6.15,"15","Пол"]
["6","Укладка массивной доски на клей \n(монтажный клей)",null,0,"кв.м.",0,0,0,0,0,6.16,"16","Пол"]
["6","Монтаж напольного полиуретанового плинтуса \n(поклейка + шпатлевка стыков + покраска)",null,0,"п.м.",0,0,0,0,0,6.17,"17","Пол"]
["6","Монтаж порожка","-",0,"шт.",0,0,0,0,0,6.18,"18","Пол"]
["6","Укладка ламината с порожком на порог","выход на балкон",0,"шт.",0,0,0,0,0,6.19,"19","Пол"]
["#ЗНАЧ!",null,null,null,null,null,null,null,null,null,null,{"$error":"#VALUE!"}]
["#ЗНАЧ!","Стены",null,null,null,null,null,null,null,null,null,{"$error":"#VALUE!"},"Стены"]
["1","Демонтаж межкомнатных перегородок","-",0,"кв.м.",0,0,{"$f":"ROUND(PRODUCT(D31:F31),0)","v":0},{"$f":"ROUND(PRODUCT(D31,G31),0)","v":0},{"$f":"SUM(H31:I31)","v":0},1.3,"3","Стены"]
["1","Расшивка швов + пропенивание + заделка штукатуркой","-",1,"компл.",0,0,0,0,0,1.31,"31","Стены"]
["1","Возведение перегородок из газоблока толщ.100 мм с армированием кладки и монтажом перемычек\n(Газобетон 600х250х100 мм, монтажный клей, металл.сетка, арматура, дихтунгсбанд лента)","-",0,"кв.м.",0,0,0,0,0,1.32,"32","Стены"]
["1","Возведение перегородок из ПГП толщ. 80мм\n(Пазогребневая плита \"Knauf\" 667х500х80мм,  монтажный клей, металл.сетка, арматура, дихтунгсбанд лента)","-",0,"кв.м.",0,0,0,0,0,1.33,"33","Стены"]
["1","Грунтование стен бетоконтактом\n(Бетоконтакт \"Knauf\")","-",0,"кв.м.",0,0,0,0,0,1.36,"36","Стены"]
["1","Выравнивание стен штукатуркой под маяк\n(Гипсовая смесь \"Волма или Старатели\" + оцинкованный маяк 6мм)","-",0,"кв.м.",0,0,0,0,0,1.37,"37","Стены"]
["3","Устройство сантех-короба, обшивка инсталляции\n(ГКЛВ \"Knauf\" с комплектующими \"Knauf\")","с/у",0,"компл",0,0,0,0,0,3.1,"1","Стены"]
["3","Устр-во сантех-короба из ГКЛВ, прячем коммуникации\n(ГКЛВ \"Knauf\" с комплектующими \"Knauf\")","с/у",0,"компл",0,0,0,0,0,3.11,"11","Стены"]
["3","Устр-во сантех-короба из газоблока №7,прячем коммуникац.\n(Газоблок 600х250х70 мм, монтаж.клей,металл.сетка)","с/у",0,"компл",0,0,0,0,0,3.12,"12","Стены"]
["3","Установка люка-невидимки, для доступа к коммуникациям","с/у",0,"шт.",0,0,0,0,0,3.13,"13","Стены"]
["3","Установка люка (станд)-для доступа к коммуникациям\n(ревизионный станд. люк)","с/у",0,"шт.",0,0,0,0,0,3.14,"14","Стены"]
["3","Паро-гидро-утепление стен","балкон",0,"кв.м.",0,0,0,0,0,3.15,"15","Стены"]
["3","Обшивка стен газоблоком №7\n(Газоблок 600х250х70 мм, монтаж.клей,металл.сетка)","балкон",0,"кв.м.",0,0,0,0,0,3.16,"16","Стены"]
["3","Обшивка стен из ГКЛВ в 2 слоя\n(ГКЛВ \"Knauf\" с комплектующими \"Knauf\")","балкон",0,"кв.м.",0,0,0,0,0,3.17,"17","Стены"]
["3","Устройство каркаса из комплектующих \"Knauf\" + \nобшивка стены из ГКЛ \"Knauf\" в 2 слоя + \nукладка минеральной ваты + \nукладка шумоизоляции \"Тексаунд\"","-",0,"кв.м.",0,0,0,0,0,3.24,"24","Стены"]
["4","Укладка плитки на стены (с затиркой швов)\n(Плиточный клей \"Knauf Fliesen\")","с/у",0,"кв.м.",0,0,0,0,0,4.1100000000000003,"11","Стены"]
["4","Укладка \"фартука\" из плитки (с затиркой швов)\n(Плиточный клей \"Knauf Fliesen\")","кухня",0,"кв.м.",0,0,0,0,0,4.12,"12","Стены"]
["4","Укладка мозаики","-",0,"кв.м.",0,0,0,0,0,4.13,"13","Стены"]
["4","Укладка декоративного камня","-",0,"кв.м.",0,0,0,0,0,4.1399999999999997,"14","Стены"]
["4","Запил плитки под 45 град.","-",0,"п.м.",0,0,0,0,0,4.1500000000000004,"15","Стены"]
["4","Установка хромированного молдинга","-",0,"шт.",0,0,0,0,0,4.16,"16","Стены"]
["5","Шпатлевка и шлифовка стен под покраску\n(\"Ветонит LR+\" 2 слоя + паутинка + \"Шитрок\" 2 слоя)","-",0,"кв.м.",0,0,0,0,0,5.0999999999999996,"1","Стены"]
["5","Шпатлевка и шлифовка стен под обои в 2 слоя\n(\"Ветонит LR+\" 2 слоя)","-",0,"кв.м.",0,0,0,0,0,5.1100000000000003,"11","Стены"]
["5","Шпатлевка и шлифовка стен под декоративную покраску","-",0,"кв.м.",0,0,0,0,0,5.12,"12","Стены"]
["5","Покраска стен в 2-3 слоя","см.шпатлевку",0,"кв.м.",0,0,0,0,0,5.15,"15","Стены"]
["5","Декоративная покраска стен (цена зависит от вида=от 900 р/м2)","-",0,"кв.м.",0,0,0,0,0,5.16,"16","Стены"]
["5","Поклейка стен обоями (винил, флизелин)","см.шпатлевку",0,"кв.м.",0,0,0,0,0,5.18,"18","Стены"]
["5","Поклейка стен обоями + Покраска обоев в 2-3 слоя","см.шпатлевку",0,"кв.м.",0,0,0,0,0,5.19,"19","Стены"]
["5","Грунтование грунтовкой глубокого проникновения-\n - все циклы между слоями\n(Грунтовка глубокого проникновения \"Cerezit\")","стены",0,"кв.м.",0,0,0,0,0,5.21,"21","Стены"]
["6","Обшивка стен панелями ПВХ\n(каркас с комплектующими)","-",0,"кв.м.",0,0,0,0,0,6.07,"07","Стены"]
["6","Обшивка стен панелями \"Изотекс\"\n(каркас с комплектующими)","-",0,"кв.м.",0,0,0,0,0,6.08,"08","Стены"]
["#ЗНАЧ!",null,null,null,null,null,null,null,null,null,null,{"$error":"#VALUE!"}]
["#ЗНАЧ!","Потолок",null,null,null,null,null,null,null,null,null,{"$error":"#VALUE!"},"Потолок"]
["1","Грунтование потолка бетоконтактом\n(Бетоконтакт \"Knauf\")","-",0,"кв.м.",0,0,{"$f":"ROUND(PRODUCT(D64:F64),0)","v":0},{"$f":"ROUND(PRODUCT(D64,G64),0)","v":0},{"$f":"SUM(H64:I64)","v":0},1.34,"34","Потолок"]
["1","Выравнивание потолка штукатуркой под маяк\n(Гипсовая смесь \"Волма или Старатели\" + оцинкованный маяк 6мм)","-",0,"кв.м.",0,0,0,0,0,1.35,"35","Потолок"]
["3","Паро-гидро-утепление потолка","балкон",0,"кв.м.",0,0,0,0,0,3.18,"18","Потолок"]
["3","Устройство подвесного потолка из ГКЛ в 2 слоя\n(ГКЛ \"Knauf\" с комплектующими \"Knauf\")","-",0,"кв.м.",0,0,0,0,0,3.19,"19","Потолок"]
["3","Устройство подвесного короба из ГКЛ в 2 слоя (шир. 0,6м)\n(ГКЛ \"Knauf\" с комплектующими \"Knauf\")","над кухонной зоной",0,"п.м.",0,0,0,0,0,3.2,{"$f":"MID(K68,SEARCH(\",\",K68,1)+1,2)","v":"2"},"Потолок"]
[{"$f":"IF(K69=\"\",\"#ЗНАЧ!\",LEFT(K69,1))","v":"3"},"Устройство подвесного короба из ГКЛ в 2 слоя (шир. 0,5м)\n(ГКЛ \"Knauf\" с комплектующими \"Knauf\")","по периметру комнаты",0,"п.м.",0,0,0,0,0,3.21,"21","Потолок"]
["3","Устройство подвесного короба из ГКЛ в 2 слоя (шир. 0,5м)\nс нишей под подсветку\n(ГКЛ \"Knauf\" с комплектующими \"Knauf\")","по периметру комнаты",0,"п.м.",0,0,0,0,0,3.22,"22","Потолок"]
["3","Устройство торцов подвесного потолка\n(ГКЛ \"Knauf\" с комплектующими \"Knauf\")","-",0,"п.м",0,0,0,0,0,3.23,"23","Потолок"]
["5","Шпатлевка и шлифовка потолка под покраску\n(\"Ветонит LR+\" 2 слоя + паутинка + \"Шитрок\" 2 слоя)","-",0,"кв.м.",0,0,0,0,0,5.08,"08","Потолок"]
["5","Шпатлевка и шлифовка торцов подвесного потолка\n(\"Ветонит LR+\" 2 слоя + паутинка + \"Шитрок\" 2 слоя)","-",0,"п.м.",0,0,0,0,0,5.09,"09","Потолок"]
["5","Покраска потолка в 2-3 слоя","см.шпатлевку",0,"кв.м.",0,0,0,0,0,5.13,"13","Потолок"]
["5","Покраска торцов подвесного потолка в 2-3 слоя","см.шпатлевку",0,"п.м.",0,0,0,0,0,5.14,"14","Потолок"]
["5","Грунтование грунтовкой глубокого проникновения-\n - все циклы между слоями\n(Грунтовка глубокого проникновения \"Cerezit\")","потолок",0,"кв.м.",0,0,0,0,0,5.2,"2","Потолок"]
["6","Грунтование грунтовкой глубокого проникновения-\n- перед устр-во натяжного потолка (от пыли и грязи) \n(Грунтовка глубокого проникновения \"Cerezit\")","в местах натяжного потолка",0,"кв.м.",0,0,0,0,0,6.03,"03","Потолок"]
["6","Устройство натяжного потолка из ПВХ\n(белый матовый или глянец)","-",0,"кв.м.",0,0,0,0,0,6.04,"04","Потолок"]
["6","Устройство натяжного потолка\n(тканевый)","-",0,"кв.м.",0,0,0,0,0,6.05,"05","Потолок"]
["6","Монтаж реечного потолка","-",0,"кв.м.",0,0,0,0,0,6.06,"06","Потолок"]
["6","Монтаж потолочного карниза + Шпатлевка и шлифовка стыков + Покраска (выс.до 100 мм)","-",0,"п.м.",0,0,0,0,0,6.09,"09","Потолок"]
["6","Монтаж потолочных галтелей + Шпатлевка и шлифовка стыков + Покраска","-",0,"п.м.",0,0,0,0,0,6.1,"1","Потолок"]
["#ЗНАЧ!",null,null,null,null,null,null,null,null,null,null,{"$error":"#VALUE!"}]
["#ЗНАЧ!","Откосы, подоконники, трубы",null,null,null,null,null,null,null,null,null,{"$error":"#VALUE!"}]
["2","Подготовка проемов под установку межкомнатных дверей","-",0,"компл.",0,0,{"$f":"ROUND(PRODUCT(D85:F85),0)","v":0},{"$f":"ROUND(PRODUCT(D85,G85),0)","v":0},{"$f":"SUM(H85:I85)","v":0},2.13,"13","Откосы, подоконники, трубы"]
["2","Выравнивание откосов входной двери\n(Гипсовая смесь \"Волма\" или ГКЛ \"Knauf\")","прихожая",0,"п.м.",0,0,0,0,0,2.14,"14","Откосы, подоконники, трубы"]
["2","Выравнивание оконных откосов\n(Гипсовая смесь \"Волма\" или ГКЛ \"Knauf\")","откосы под покраску",0,"п.м.",0,0,0,0,0,2.15,"15","Откосы, подоконники, трубы"]
["5","Шпатлевка и шлифовка под покраску + Покраска в 2-3 слоя оконных откосов","откосы под покраску",0,"п.м.",0,0,0,0,0,5.03,"03","Откосы, подоконники, трубы"]
["5","Устройство оконных откосов из сэндвич-панелей","откосы ПВХ",0,"п.м.",0,0,0,0,0,5.04,"04","Откосы, подоконники, трубы"]
["5","Установка подоконника из ПВХ \n(\"Народный пластик\")","-",0,"шт.",0,0,0,0,0,5.05,"05","Откосы, подоконники, трубы"]
["5","Установка подоконника из ПВХ \n(\"Moeller\")","-",0,"шт.",0,0,0,0,0,5.0599999999999996,"06","Откосы, подоконники, трубы"]
["5","Установка подоконника из ПВХ (длин.)","балкон",0,"шт.",0,0,0,0,0,5.07,"07","Откосы, подоконники, трубы"]
["5","Очистка от старой краски + покраска труб отопления\n(Очиститель + Краска \"Dulux\" или \"Dufa\")","трубы",0,"п.м.",0,0,0,0,0,5.17,"17","Откосы, подоконники, трубы"]
["#ЗНАЧ!",null,null,null,null,null,null,null,null,null,null,{"$error":"#VALUE!"}]
["#ЗНАЧ!","Коммуникации",null,null,null,null,null,null,null,null,null,{"$error":"#VALUE!"}]
["2","Замена системы отопления:\n- установка коллекторов в квартиру;\n- замена труб отопления (коллекторная система);\n- демонтаж и монтаж радиаторов отопления.","-",1,"компл",0,0,{"$f":"ROUND(PRODUCT(D96:F96),0)","v":0},{"$f":"ROUND(PRODUCT(D96,G96),0)","v":0},{"$f":"SUM(H96:I96)","v":0},2.0299999999999998,"03","Коммуникации"]
["2","Электромонтажные работы по всей квартире:","везде",1,"компл",0,0,{"$f":"ROUND(PRODUCT(D97:F97),0)","v":0},{"$f":"ROUND(PRODUCT(D97,G97),0)","v":0},{"$f":"SUM(H97:I97)","v":0},2.04,"04","Коммуникации"]
["2","-штробление под кабель и подрозетники;\n-прокладка кабеля в гофре;\n-проводка кабеля по всей квартире;\n-установка подрозетников;\n-установка и сборка эл.щитка (установка автоматов, УЗО и т.п.)","Материал на электрику: Кабель - \"ВВГ-нг LS\"; кабель - TV-SAT-703; INT кабель - UTP-5; \nАвтоматы, УЗО, Дифы, Бокс(Щит) - \"Schneider\"\nПодрозетники \"Schneider\"",null,null,null,null,null,null,null,2.0499999999999998,"05","Коммуникации"]
["3","Устройство вентиляции:\n- штробление;\n- замена вентиляц.муфт;\n- прокладка вентил.трубы 120х65мм.","кухня + с/у",1,"компл",0,0,{"$f":"ROUND(PRODUCT(D99:F99),0)","v":0},{"$f":"ROUND(PRODUCT(D99,G99),0)","v":0},{"$f":"SUM(H99:I99)","v":0},3.09,"09","Коммуникации"]
["3","Сантехнические работы по всей квартире (полипропилен):","кухня + с/у",1,"компл",0,0,{"$f":"ROUND(PRODUCT(D100:F100),0)","v":0},{"$f":"ROUND(PRODUCT(D100,G100),0)","v":0},{"$f":"SUM(H100:I100)","v":0},3.03,"03","Коммуникации"]
["3","- штробление под трубы;\n- разводка ГВС, ХВС и труб канализации;\n- установка коллектора;\n- установка фильтров грубой очистки;\n- установка установочных кранов.","Материал на сантехнику: Трубы из полипропилена PRO AQVA армированный d=20, 25. Коллектор \"MULTIFAR\" Италия, Фитинги, Фильтры грубой очистки;\nУстановочные краны \"ITAP\" Италия.\nКанализационные трубы d=50, 40, 32, Отводы, Тройники, Манжеты (\"Политэк\")",null,null,null,null,null,null,null,3.04,"04","Коммуникации"]
["3","Сантехнические работы по всей квартире (\"REHAU\"):","кухня + с/у",1,"компл",0,0,{"$f":"ROUND(PRODUCT(D102:F102),0)","v":0},{"$f":"ROUND(PRODUCT(D102,G102),0)","v":0},{"$f":"SUM(H102:I102)","v":0},3.05,"05","Коммуникации"]
["3","- штробление под трубы;\n- разводка ГВС, ХВС и труб канализации;\n- установка коллектора;\n- установка фильтров грубой очистки;\n- установка установочных кранов.","Материал на сантехнику: Трубы из сшитого полиэтилена REHAU d=20, 25. \nКоллектор \"MULTIFAR\" Италия, Фитинги, Фильтры грубой очистки;\nУстановочные краны \"ITAP\" Италия.\nКанализационные трубы d=50, 40, 32, Отводы, Тройники, Манжеты (\"Политэк\")",null,null,null,null,null,null,null,3.06,"06","Коммуникации"]
["3","Установка системы протечки \n(Система протечки \"Нептун\")","-",0,"компл.",0,0,{"$f":"ROUND(PRODUCT(D104:F104),0)","v":0},{"$f":"ROUND(PRODUCT(D104,G104),0)","v":0},{"$f":"SUM(H104:I104)","v":0},3.07,"07","Коммуникации"]
["#ЗНАЧ!",null,null,null,null,null,null,null,null,null,null,{"$error":"#VALUE!"}]
["#ЗНАЧ!","Санфаянсы, светильники и т.п.",null,null,null,null,null,null,null,null,null,{"$error":"#VALUE!"}]
["4","Установка чугунной или акриловой ванны (с подключением)","с/у",0,"шт.",0,0,{"$f":"ROUND(PRODUCT(D107:F107),0)","v":0},{"$f":"ROUND(PRODUCT(D107,G107),0)","v":0},{"$f":"SUM(H107:I107)","v":0},4.08,"08","Санфаянсы, светильники и т.п."]
["4","Устройство экрана из ГКЛВ (на ванну)\n(ГКЛ \"Knauf\" с комплектующими \"Knauf\")","с/у",0,"компл.",0,0,0,0,0,4.09,"09","Санфаянсы, светильники и т.п."]
["4","Установка люка на магнитах (на экран)","с/у",0,"шт.",0,0,0,0,0,4.0999999999999996,"1","Санфаянсы, светильники и т.п."]
["6","Установка полотенцесушителя (с подключением)","с/у",0,"шт.",0,0,0,0,0,6.2,"2","Санфаянсы, светильники и т.п."]
["6","Установка раковины (с подключением)","с/у",0,"шт.",0,0,0,0,0,6.21,"21","Санфаянсы, светильники и т.п."]
["6","Установка раковины с тумбой (с подключением)","с/у",0,"шт.",0,0,0,0,0,6.22,"22","Санфаянсы, светильники и т.п."]
["6","Установка смесителя (с подключением)","с/у",0,"шт.",0,0,0,0,0,6.23,"23","Санфаянсы, светильники и т.п."]
["6","Установка кронштейна с лейкой (с подключением)","с/у",0,"шт.",0,0,0,0,0,6.24,"24","Санфаянсы, светильники и т.п."]
["3","Установка инсталляции унитаза","с/у",0,"компл",0,0,0,0,0,3.08,"08","Санфаянсы, светильники и т.п."]
["6","Установка унитаза (с подключением)","с/у",0,"шт.",0,0,0,0,0,6.25,"25","Санфаянсы, светильники и т.п."]
["6","Установка гигиенического душа (с подключением)","с/у",0,"шт.",0,0,0,0,0,6.26,"26","Санфаянсы, светильники и т.п."]
["6","Установка стиральной машины (с подключением)","с/у",0,"шт.",0,0,0,0,0,6.27,"27","Санфаянсы, светильники и т.п."]
["6","Установка душевой кабины (с подключением)","с/у",0,"шт.",0,0,0,0,0,6.28,"28","Санфаянсы, светильники и т.п."]
["6","Установка бойлера (с подключением)","с/у",0,"шт.",0,0,0,0,0,6.29,"29","Санфаянсы, светильники и т.п."]
["6","Установка зеркала с подсветкой","с/у",0,"шт.",0,0,0,0,0,6.3,"3","Санфаянсы, светильники и т.п."]
["6","Установка вентилятора","с/у",0,"шт.",0,0,0,0,0,6.31,"31","Санфаянсы, светильники и т.п."]
["6","Установка регулятора теплого пола","-",0,"шт.",0,0,0,0,0,6.32,"32","Санфаянсы, светильники и т.п."]
["6","Установка розеток 220В, TV, INT, выключателей","-",0,"шт.",0,0,0,0,0,6.33,"33","Санфаянсы, светильники и т.п."]
["6","Установка точечного светильника","-",0,"шт.",0,0,0,0,0,6.34,"34","Санфаянсы, светильники и т.п."]
["6","Установка подвесного светильника","-",0,"шт.",0,0,0,0,0,6.35,"35","Санфаянсы, светильники и т.п."]
["6","Установка люстры (обычной)","-",0,"шт.",0,0,0,0,0,6.36,"36","Санфаянсы, светильники и т.п."]
["6","Установка настенного светильника (БРА)","-",0,"шт.",0,0,0,0,0,6.37,"37","Санфаянсы, светильники и т.п."]
["6","Монтаж светодиодной подсветки с установкой трасформатора","-",0,"п.м.",0,0,0,0,0,6.38,"38","Санфаянсы, светильники и т.п."]
["6","Установка домофона","-",0,"шт.",0,0,0,0,0,6.39,"39","Санфаянсы, светильники и т.п."]
["6","Установка звонка","-",0,"шт.",0,0,0,0,0,6.4,"4","Санфаянсы, светильники и т.п."]
["#ЗНАЧ!",null,null,null,null,null,null,null,null,null,null,{"$f":"MID(K132,SEARCH(\",\",K132,1)+1,2)","v":{"$error":"#VALUE!"}}]
[{"$f":"IF(K133=\"\",\"#ЗНАЧ!\",LEFT(K133,1))","v":"#ЗНАЧ!"},"Общий раздел",null,null,null,null,null,null,null,null,null,{"$f":"MID(K133,SEARCH(\",\",K133,1)+1,2)","v":{"$error":"#VALUE!"}}]
[{"$f":"IF(K134=\"\",\"#ЗНАЧ!\",LEFT(K134,1))","v":"#ЗНАЧ!"},"Расходный материал и инструмент (5% от общей стоимости работ)",null,0.05,"руб",{"$f":"ROUND(SUMPRODUCT(D3:D133,F3:F133),0)","v":0},0,0,{"$f":"ROUNDDOWN(D134*F134,0)","v":0},{"$f":"SUM(H134:I134)","v":0},null,{"$f":"MID(K134,SEARCH(\",\",K134,1)+1,2)","v":{"$error":"#VALUE!"}}]
[{"$f":"IF(K135=\"\",\"#ЗНАЧ!\",LEFT(K135,1))","v":"#ЗНАЧ!"},"Накладные и транспортные расходы","-",1,"компл",0,0,{"$f":"ROUND(PRODUCT(D135:F135),1)","v":0},{"$f":"PRODUCT(D135,G135)","v":0},{"$f":"SUM(H135:I135)","v":0},null,{"$f":"MID(K135,SEARCH(\",\",K135,1)+1,2)","v":{"$error":"#VALUE!"}}]
[{"$f":"IF(K136=\"\",\"#ЗНАЧ!\",LEFT(K136,1))","v":"#ЗНАЧ!"},null,null,null,null,null,null,null,null,null,null,{"$f":"MID(K136,SEARCH(\",\",K136,1)+1,2)","v":{"$error":"#VALUE!"}}]
[null,"Итого на работу:",null,null,null,null,null,{"$f":"F134","v":0}]
[null,"Итого на материал:",null,null,null,null,null,null,{"$f":"ROUNDDOWN(SUMPRODUCT(D3:D133,G3:G133),0)+J134+J135","v":0}]
[]
[null,"-"]
[null,"Дополнение:",null,null,null,null,null,"Примечание:"]
[null,"Вынос мусора",null,"тонна",null,0,0]
[null,"-"]

{"sheet":"СМЕТА","index":1,"n_rows":34,"n_cols":9,"rows_kept":34,"cut":false,"hidden":false,"merged":[]}
["СМЕТНЫЙ РАСЧЕТ"]
["на проведение ремонтно-отделочных работ"]
["Наименование работ","Помещения","Кол-во","Ед.изм.","Цена за ед работы","Цена за ед мат-ла","Работа","Материал","Всего, руб."]
[]
["Этап №1"]
[]
["Итого (этап №1):",null,null,null,null,null,{"$f":"ROUND(SUMPRODUCT(C5:C7,E5:E7),0)","v":0},{"$f":"ROUND(SUMPRODUCT(C5:C7,F5:F7),0)","v":0}]
[]
["Этап №2"]
[]
["Итого (этап №2):",null,null,null,null,null,{"$f":"ROUND(SUMPRODUCT(C9:C11,E9:E11),0)","v":0},{"$f":"ROUND(SUMPRODUCT(C9:C11,F9:F11),0)","v":0}]
[]
["Этап №3"]
[]
["Итого (этап №3):",null,null,null,null,null,{"$f":"ROUND(SUMPRODUCT(C13:C15,E13:E15),0)","v":0},{"$f":"ROUND(SUMPRODUCT(C13:C15,F13:F15),0)","v":0}]
[]
["Этап №4"]
[]
["Итого (этап №4):",null,null,null,null,null,{"$f":"ROUND(SUMPRODUCT(C17:C19,E17:E19),0)","v":0},{"$f":"ROUND(SUMPRODUCT(C17:C19,F17:F19),0)","v":0}]
[]
["Этап №5"]
[]
["Итого (этап №5):",null,null,null,null,null,{"$f":"ROUND(SUMPRODUCT(C21:C23,E21:E23),0)","v":0},{"$f":"ROUND(SUMPRODUCT(C21:C23,F21:F23),0)","v":0}]
[]
["Этап №6"]
[]
["Итого (этап №6):",null,null,null,null,null,{"$f":"ROUND(SUMPRODUCT(C25:C27,E25:E27),0)","v":0},{"$f":"ROUND(SUMPRODUCT(C25:C27,F25:F27),0)","v":0}]
[]
["Общий раздел"]
["Расходный материал и инструмент (5% от общей стоимости работ)",null,0.05,"руб",{"$f":"ROUND(SUMPRODUCT(C3:C29,E3:E29),0)","v":0},0,0,{"$f":"ROUNDDOWN(C30*E30,0)","v":0},{"$f":"SUM(G30:H30)","v":0}]
["Накладные и транспортные расходы","-",1,"компл",0,0,{"$f":"ROUND(PRODUCT(C31:E31),1)","v":0},{"$f":"PRODUCT(C31,F31)","v":0},{"$f":"SUM(G31:H31)","v":0}]
[]
["Итого на работу:",null,null,null,null,null,{"$f":"E30","v":0}]
["Итого на материал:",null,null,null,null,null,null,{"$f":"ROUNDDOWN(SUMPRODUCT(C3:C29,F3:F29),0)+I30+I31","v":0}]